fUSD/lending_fUSD_20251024
["ID","MTS","AMOUNT","RATE_DAILY","PERIOD"]
[392327020,1761341441637,-216.194599,0.000382,30]
[392327021,1761341441646,-151.0,0.00038213,2]
[392327022,1761341441656,-151.0,0.00038213,2]
[392327023,1761341441666,-151.0,0.00038213,2]
[392327024,1761341441675,-151.0,0.00038213,2]
[392327025,1761341441684,-151.0,0.00038213,2]
[392327026,1761341441693,-151.0,0.00038213,2]
[392327027,1761341441703,-151.0,0.00038213,2]
[392327028,1761341441713,-151.0,0.00038213,2]
[392327029,1761341441722,-151.0,0.00038213,2]
[392327030,1761341441731,-151.0,0.00038213,2]
[392327031,1761341441740,-151.0,0.00038213,2]
[392327032,1761341441749,-151.0,0.00038213,2]
[392327033,1761341441758,-151.0,0.00038213,2]
[392327034,1761341441768,-151.0,0.00038213,2]
[392327035,1761341441779,-151.0,0.00038213,2]
[392327036,1761341441788,-151.0,0.00038213,2]
[392327037,1761341441798,-151.0,0.00038213,2]
[392327038,1761341441808,-151.0,0.00038213,2]
[392327039,1761341441816,-151.0,0.00038213,2]
[392327040,1761341441826,-151.0,0.00038213,2]
[392327041,1761341441835,-151.0,0.00038213,2]
[392327042,1761341441844,-151.0,0.00038213,2]
[392327043,1761341441853,-151.0,0.00038213,2]
[392327044,1761341441864,-151.0,0.00038213,2]
[392327045,1761341441874,-151.0,0.00038213,2]
[392327046,1761341441883,-151.0,0.00038213,2]
[392327047,1761341441893,-151.0,0.00038213,2]
[392327048,1761341441903,-151.0,0.00038213,2]
[392327049,1761341441912,-151.0,0.00038213,2]
[392327050,1761341441921,-151.0,0.00038213,2]
[392327051,1761341441931,-151.0,0.00038213,2]
[392327052,1761341441941,-151.0,0.00038213,2]
[392327053,1761341441951,-151.0,0.00038213,2]
[392327054,1761341441962,-151.0,0.00038213,2]
[392327055,1761341441972,-151.0,0.00038213,2]
[392327056,1761341441981,-151.0,0.00038213,2]
[392327057,1761341441990,-272.84897206,0.00038213,2]
[392327058,1761341441999,-151.0,0.00038213,2]
[392327059,1761341442009,-151.0,0.00038213,2]
[392327060,1761341442018,-151.0,0.00038213,2]
[392327061,1761341442029,-151.0,0.00038213,2]
[392327062,1761341442043,-151.0,0.00038213,2]
[392327063,1761341442052,-151.0,0.00038213,2]
[392327064,1761341442061,-151.0,0.00038213,2]
[392327065,1761341442071,-151.0,0.00038213,2]
[392327066,1761341442081,-17176.9849294,0.00038227,3]
[392327067,1761341442090,-150.4,0.00038227,2]
[392327068,1761341442099,-407.35292496,0.00038227,2]
[392327069,1761341442109,-500.0,0.00038233,2]
[392327070,1761341442119,-500.0,0.00038233,2]
[392327071,1761341442128,-150.0,0.00038233,2]
[392327072,1761341442137,-500.0,0.00038233,2]
[392327073,1761341442147,-861.0,0.00038233,2]
[392327074,1761341442156,-150.0,0.00038233,2]
[392327075,1761341442165,-172.54370901,0.00038233,2]
[392327076,1761341442174,-500.0,0.00038233,2]
[392327077,1761341442183,-150.0,0.00038233,2]
[392327078,1761341442193,-258.30182387,0.00038233,2]
[392327079,1761341442202,-150.0,0.00038233,2]
[392327080,1761341442211,-500.0,0.00038233,2]
[392327081,1761341442220,-200.0,0.00038233,2]
[392327082,1761341442230,-150.0,0.00038233,2]
[392327083,1761341442239,-150.0,0.00038233,2]
[392327084,1761341442249,-264.98299232,0.00038233,2]
[392327085,1761341442259,-150.0,0.00038233,2]
[392327086,1761341442268,-150.0,0.00038233,2]
[392327087,1761341442278,-150.0,0.00038233,2]
[392327088,1761341442287,-33170.7581,0.00038236,2]
[392327089,1761341442298,-1000.0,0.00038236,2]
[392327090,1761341442307,-68073.78189338,0.00038236,2]
[392327091,1761341442316,-151.0,0.00038236,30]
[392327092,1761341442326,-151.0,0.00038236,30]
[392327093,1761341442335,-151.0,0.00038236,30]
[392327094,1761341442344,-151.0,0.00038236,30]
[392327095,1761341442354,-270.78252,0.00038236,30]
[392327096,1761341442364,-151.0,0.00038236,30]
[392327097,1761341442373,-168.0,0.00038237,2]
[392327098,1761341442382,-85852.2768424,0.00038237,2]
[392327099,1761341442392,-291.32004,0.00038237,30]
[392327100,1761341442401,-151.0,0.00038237,30]
[392327101,1761341442410,-151.0,0.00038237,30]
[392327102,1761341442420,-151.0,0.00038237,30]
[392327103,1761341442428,-2303.9087416,0.00038237,2]
[392327104,1761341442437,-151.0,0.00038237,30]
[392327105,1761341442447,-151.0,0.00038237,30]
[392327106,1761341442456,-151.0,0.00038237,30]
[392327107,1761341442466,-151.0,0.00038237,30]
[392327108,1761341442475,-151.0,0.00038237,30]
[392327109,1761341442484,-151.0,0.00038237,30]
[392327110,1761341442494,-216.194599,0.00038237,30]
[392327111,1761341442503,-216.194599,0.00038237,30]
[392327112,1761341442513,-216.194599,0.00038237,30]
[392327113,1761341442522,-216.194599,0.00038237,30]
[392327114,1761341442532,-103061.909576,0.00038246,3]
[392327115,1761341442541,-38279.0435211,0.00038246,3]
[392327116,1761341442551,-150.4,0.00038246,2]
[392327117,1761341442560,-150.4,0.00038246,2]
[392327118,1761341442569,-151.0,0.00038246,30]
[392327119,1761341442578,-151.0,0.00038246,30]
[392327120,1761341442587,-151.0,0.00038246,30]
[392327121,1761341442596,-151.0,0.00038246,30]
[392327122,1761341442606,-500.0,0.00038255,2]
[392327123,1761341442615,-1656.0,0.00038256,5]
[392327124,1761341442624,-121916.18485637,0.00038256,2]
[392327125,1761341442638,-1325.72423395,0.00038256,2]
[392327126,1761341442650,-661.93833201,0.00038256,2]
[392327133,1761341443216,-252.35223995,0.00033529,2]
[392327146,1761341467889,1064.560282,7.945e-05,2]
[392327151,1761342300697,5050.0,0.00036808,36]
[392327159,1761342632388,-150.0,0.00035088,7]
[392327160,1761342632397,-4273.43107052,0.000363,2]
[392327161,1761342632406,-500.0,0.00036349,30]
[392327162,1761342632416,-300.0,0.00036535,7]
[392327163,1761342632425,-26147.56,0.00036544,2]
[392327164,1761342632433,-500.0,0.0003659,30]
[392327165,1761342632444,-35740.04,0.00036711,7]
[392327167,1761342632453,-1200.0,0.00036712,7]
[392327168,1761342632462,-1000.0,0.00036736,2]
[392327169,1761342632471,-564.88,0.00036752,120]
[392327170,1761342632480,-465.79407674,0.00036783,30]
[392327171,1761342632489,-433.22462806,0.00036783,30]
[392327172,1761342632499,-1095.2,0.000368,2]
[392327173,1761342632508,-475.59,0.000368,2]
[392327174,1761342632517,-168.0,0.00036872,2]
[392327175,1761342632526,-379.8987,0.00036888,7]
[392327176,1761342632535,-1551.0515092,0.00036911,120]
[392327177,1761342632545,-233.28247643,0.00036954,2]
[392327178,1761342632554,-410.11137599,0.00036955,2]
[392327179,1761342632564,-500.0,0.00036958,30]
[392327180,1761342632573,-8910.61388218,0.00037,12]
[392327181,1761342632584,-159.6,0.00037039,2]
[392327183,1761342632592,-279.0,0.00037136,120]
[392327185,1761342632602,-2395.05,0.00037147,2]
[392327186,1761342632611,-1852.42,0.00037152,2]
[392327187,1761342632621,-364.0,0.00037261,7]
[392327188,1761342632631,-951.18,0.0003737,2]
[392327189,1761342632641,-245.65,0.0003737,48]
[392327190,1761342632651,-168.79,0.00037378,2]
[392327191,1761342632660,-500.0,0.000374,5]
[392327192,1761342632669,-500.0,0.000374,5]
[392327193,1761342632678,-500.0,0.000374,5]
[392327194,1761342632687,-500.0,0.000374,5]
[392327195,1761342632696,-1798.6317134,0.000375,2]
[392327196,1761342632708,-1200.0,0.00037534,7]
[392327197,1761342632717,-279.0,0.00037582,2]
[392327198,1761342632727,-150.0,0.00037616,2]
[392327199,1761342632736,-172.54370901,0.00037616,2]
[392327200,1761342632746,-150.0,0.00037616,2]
[392327201,1761342632757,-500.0,0.00037616,2]
[392327202,1761342632767,-202.87028618,0.00037616,2]
[392327203,1761342632776,-150.0,0.00037616,2]
[392327204,1761342632788,-258.30182387,0.00037616,2]
[392327205,1761342632797,-150.0,0.00037616,2]
[392327206,1761342632807,-500.0,0.00037616,2]
[392327207,1761342632816,-500.0,0.00037616,2]
[392327208,1761342632826,-176.35,0.00037616,2]
[392327209,1761342632836,-547.6,0.00037616,2]
[392327210,1761342632846,-150.0,0.00037616,2]
[392327211,1761342632855,-2416.99,0.00037616,2]
[392327212,1761342632864,-324.96,0.00037616,2]
[392327213,1761342632873,-168.52,0.00037616,2]
[392327214,1761342632883,-150.0,0.00037616,2]
[392327215,1761342632892,-150.0,0.00037616,2]
[392327216,1761342632901,-150.0,0.00037616,2]
[392327217,1761342632910,-828.7,0.00037616,2]
[392327218,1761342632919,-547.6,0.00037616,2]
[392327219,1761342632929,-150.0,0.00037616,2]
[392327220,1761342632938,-150.0,0.00037616,2]
[392327221,1761342632947,-150.0,0.00037616,2]
[392327222,1761342632958,-150.0,0.00037616,2]
[392327223,1761342632967,-168.52,0.00037616,2]
[392327224,1761342632978,-150.0,0.00037616,2]
[392327225,1761342632990,-547.6,0.00037616,2]
[392327226,1761342632999,-168.52,0.00037616,2]
[392327227,1761342633008,-150.0,0.00037616,2]
[392327228,1761342633017,-150.0,0.00037616,2]
[392327229,1761342633026,-150.0,0.00037616,2]
[392327230,1761342633036,-150.0,0.00037616,2]
[392327231,1761342633045,-150.0,0.00037616,2]
[392327232,1761342633054,-150.0,0.00037616,2]
[392327233,1761342633063,-547.6,0.00037616,2]
[392327234,1761342633072,-150.0,0.00037616,2]
[392327235,1761342633080,-150.0,0.00037616,2]
[392327236,1761342633090,-547.6,0.00037616,2]
[392327237,1761342633099,-150.0,0.00037616,2]
[392327238,1761342633108,-432.14,0.00037616,2]
[392327239,1761342633118,-150.0,0.00037616,2]
[392327240,1761342633128,-547.6,0.00037616,2]
[392327241,1761342633137,-547.6,0.00037616,2]
[392327242,1761342633148,-547.6,0.00037616,2]
[392327243,1761342633158,-547.6,0.00037616,2]
[392327244,1761342633168,-547.6,0.00037616,2]
[392327245,1761342633178,-547.6,0.00037616,2]
[392327246,1761342633188,-547.6,0.00037616,2]
[392327247,1761342633198,-547.6,0.00037616,2]
[392327248,1761342633208,-500.0,0.0003763,7]
[392327249,1761342633218,-231.6,0.0003763,7]
[392327250,1761342633227,-500.0,0.0003763,7]
[392327251,1761342633237,-500.0,0.0003763,7]
[392327252,1761342633247,-500.0,0.0003763,7]
[392327253,1761342633257,-500.0,0.0003763,7]
[392327254,1761342633266,-500.0,0.0003763,7]
[392327255,1761342633277,-500.0,0.0003763,7]
[392327256,1761342633287,-500.0,0.0003763,7]
[392327257,1761342633296,-500.0,0.0003763,7]
[392327258,1761342633305,-500.0,0.0003763,7]
[392327259,1761342633315,-500.0,0.0003763,7]
[392327260,1761342633324,-500.0,0.0003763,7]
[392327261,1761342633333,-500.0,0.0003763,7]
[392327262,1761342633342,-500.0,0.0003763,7]
[392327263,1761342633352,-500.0,0.0003763,7]
[392327264,1761342633362,-500.0,0.0003763,7]
[392327265,1761342633372,-500.0,0.0003763,7]
[392327266,1761342633382,-500.0,0.0003763,7]
[392327267,1761342633393,-500.0,0.0003763,7]
[392327268,1761342633403,-500.0,0.0003763,7]
[392327269,1761342633412,-500.0,0.0003763,7]
[392327270,1761342633422,-500.0,0.0003763,7]
[392327271,1761342633432,-500.0,0.0003763,7]
[392327272,1761342633442,-500.0,0.0003763,7]
[392327273,1761342633451,-500.0,0.0003763,7]
[392327274,1761342633461,-500.0,0.0003763,7]
[392327275,1761342633471,-500.0,0.0003763,7]
[392327276,1761342633480,-500.0,0.0003763,7]
[392327277,1761342633490,-500.0,0.0003763,7]
[392327278,1761342633500,-500.77,0.0003763,7]
[392327279,1761342633510,-500.0,0.0003763,7]
[392327280,1761342633520,-500.0,0.0003763,7]
[392327281,1761342633529,-500.0,0.0003763,7]
[392327282,1761342633539,-500.0,0.0003763,7]
[392327283,1761342633549,-500.0,0.0003763,7]
[392327284,1761342633559,-500.0,0.0003763,7]
[392327285,1761342633569,-500.0,0.0003763,7]
[392327286,1761342633578,-500.0,0.0003763,7]
[392327287,1761342633588,-500.0,0.0003763,7]
[392327288,1761342633598,-375.56115104,0.0003763,7]
[392327330,1761342640445,-200.0,0.00037616,2]
[392327331,1761342640455,-500.0,0.00037616,2]
[392327332,1761342640464,-150.0,0.00037616,2]
[392327333,1761342640474,-150.0,0.00037616,2]
[392327334,1761342640483,-179.31213936,0.00037616,2]
[392327335,1761342640493,-264.98299232,0.00037616,2]
[392327336,1761342640503,-124.43884896,0.0003763,7]
[392327337,1761342640512,-500.0,0.0003763,7]
[392327338,1761342640522,-500.0,0.0003763,7]
[392327339,1761342640531,-500.0,0.0003763,7]
[392327340,1761342640540,-500.0,0.0003763,7]
[392327341,1761342640550,-500.0,0.0003763,7]
[392327342,1761342640559,-500.0,0.0003763,7]
[392327343,1761342640568,-500.0,0.0003763,7]
[392327344,1761342640577,-500.0,0.0003763,7]
[392327345,1761342640587,-500.0,0.00037645,30]
[392327346,1761342640596,-500.0,0.00037671,2]
[392327347,1761342640605,-500.0,0.00037671,2]
[392327348,1761342640615,-500.0,0.00037671,2]
[392327349,1761342640625,-500.0,0.00037671,2]
[392327350,1761342640634,-150.0,0.00037671,2]
[392327351,1761342640644,-364.0,0.00037717,2]
[392327352,1761342640655,-299.82284826,0.00037726,2]
[392327353,1761342640688,-0.17715174,0.00037726,2]
[392327354,1761342640698,-500.0,0.00037726,2]
[392327355,1761342640707,-500.0,0.00037726,2]
[392327356,1761342640716,-500.0,0.00037726,2]
[392327357,1761342640725,-200.0,0.00037726,2]
[392327358,1761342640735,-500.0,0.0003778,2]
[392327359,1761342640744,-500.0,0.0003778,2]
[392327360,1761342640754,-400.0,0.0003778,2]
[392327361,1761342640767,-197.73475584,0.00037789,2]
[392327362,1761342640777,-849.89237801,0.00037833,2]
[392327363,1761342640786,-500.0,0.00037835,2]
[392327364,1761342640795,-500.0,0.00037835,2]
[392327365,1761342640806,-168.0,0.00037855,2]
[392327366,1761342640816,-23777.97030971,0.0003788,2]
[392327367,1761342640826,-358.24662432,0.0003789,2]
[392327368,1761342640838,-500.0,0.0003789,2]
[392327370,1761342640847,-500.0,0.00037945,2]
[392327372,1761342640856,-11494.10875802,0.00037946,2]
[392327374,1761342640866,-1000.0,0.00037948,5]
[392327376,1761342640876,-1000.0,0.00037948,5]
[392327378,1761342640885,-500.0,0.00037948,5]
[392327380,1761342640895,-2500.0,0.00037956,2]
[392327382,1761342640904,-500.0,0.00038,2]
[392327384,1761342640913,-16500.6199677,0.00038,2]
[392327386,1761342640923,-279.0,0.00038009,7]
[392327388,1761342640933,-500.0,0.00038028,2]
[392327390,1761342640942,-6625.2234,0.00038046,2]
[392327392,1761342640951,-233.7175,0.00038046,2]
[392327394,1761342640960,-1000.0,0.00038046,2]
[392327396,1761342640970,-166.66,0.00038051,2]
[392327398,1761342640980,-500.0,0.00038054,2]
[392327400,1761342640989,-160.36491304,0.00038056,15]
[392327402,1761342640997,-1008.4418204,0.00038056,10]
[392327404,1761342641007,-4175.42270423,0.00038056,2]
[392327406,1761342641016,-500.0,0.00038083,2]
[392327409,1761342641027,-500.0,0.00038109,2]
[392327411,1761342641036,-151.0,0.0003811,2]
[392327413,1761342641046,-151.0,0.0003811,2]
[392327415,1761342641055,-151.0,0.0003811,2]
[392327417,1761342641064,-151.0,0.0003811,2]
[392327419,1761342641073,-272.84897206,0.0003811,2]
[392327421,1761342641082,-151.0,0.0003811,2]
[392327423,1761342641091,-151.0,0.0003811,2]
[392327425,1761342641100,-151.0,0.0003811,2]
[392327427,1761342641109,-151.0,0.0003811,2]
[392327429,1761342641118,-151.0,0.0003811,2]
[392327431,1761342641127,-151.0,0.0003811,2]
[392327433,1761342641136,-151.0,0.0003811,2]
[392327435,1761342641145,-151.0,0.0003811,2]
[392327437,1761342641155,-151.0,0.0003811,2]
[392327439,1761342641164,-151.0,0.0003811,2]
[392327441,1761342641174,-151.0,0.0003811,2]
[392327443,1761342641184,-151.0,0.0003811,2]
[392327445,1761342641194,-151.0,0.0003811,2]
[392327447,1761342641203,-151.0,0.0003811,2]
[392327449,1761342641212,-151.0,0.0003811,2]
[392327451,1761342641222,-151.0,0.0003811,2]
[392327453,1761342641231,-151.0,0.0003811,2]
[392327455,1761342641240,-151.0,0.0003811,2]
[392327457,1761342641249,-151.0,0.0003811,2]
[392327459,1761342641259,-151.0,0.0003811,2]
[392327461,1761342641268,-151.0,0.0003811,2]
[392327463,1761342641278,-151.0,0.0003811,2]
[392327465,1761342641287,-151.0,0.0003811,2]
[392327467,1761342641297,-151.0,0.0003811,2]
[392327469,1761342641307,-151.0,0.0003811,2]
[392327471,1761342641316,-151.0,0.0003811,2]
[392327473,1761342641325,-151.0,0.0003811,2]
[392327475,1761342641334,-151.0,0.0003811,2]
[392327477,1761342641343,-151.0,0.0003811,2]
[392327479,1761342641352,-151.0,0.0003811,2]
[392327481,1761342641361,-151.0,0.0003811,2]
[392327483,1761342641370,-151.0,0.0003811,2]
[392327485,1761342641380,-151.0,0.0003811,2]
[392327487,1761342641389,-151.0,0.0003811,2]
[392327489,1761342641399,-151.0,0.0003811,2]
[392327491,1761342641408,-151.0,0.0003811,2]
[392327493,1761342641418,-151.0,0.0003811,2]
[392327495,1761342641428,-151.0,0.0003811,2]
[392327497,1761342641437,-151.0,0.0003811,2]
[392327499,1761342641447,-151.0,0.0003811,2]
[392327501,1761342641456,-33170.7581,0.00038133,2]
[392327503,1761342641465,-1000.0,0.00038133,2]
[392327505,1761342641474,-500.0,0.00038138,2]
[392327507,1761342641485,-5000.0,0.00038146,2]
[392327509,1761342641495,-70135.6460254,0.00038146,3]
[392327511,1761342641504,-500.0,0.00038155,2]
[392327513,1761342641513,-500.0,0.00038155,2]
[392327515,1761342641523,-192905.9012,0.00038156,2]
[392327517,1761342641533,-3524.5325,0.00038156,2]
[392327519,1761342641542,-1000.0,0.00038156,120]
[392327521,1761342641551,-500.0,0.00038164,2]
[392327523,1761342641561,-500.0,0.00038192,2]
[392327525,1761342641571,-500.0,0.00038219,2]
[392327527,1761342641580,-52601.734519,0.00038232,3]
[392327529,1761342641590,-38831.6876332,0.00038232,3]
[392327532,1761342641600,-25887.7917555,0.00038236,3]
[392327534,1761342641609,-379.0843863,0.00038236,2]
[392327536,1761342641619,-12943.8958777,0.00038236,3]
[392327538,1761342641627,-500.0,0.00038241,2]
[392327539,1761342641637,-500.0,0.00038241,2]
[392327541,1761342641646,-2466.3445202,0.00038242,2]
[392327543,1761342641655,-2303.9087416,0.00038242,2]
[392327545,1761342641664,-67445.2941001,0.00038242,2]
[392327547,1761342641673,-20249.1279159,0.00038242,2]
[392327549,1761342641681,-5585.1577946,0.00038242,2]
[392327551,1761342641690,-2866.5607827,0.00038242,2]
[392327553,1761342641699,-271.347679,0.00038242,30]
[392327556,1761342641712,-271.347679,0.00038242,30]
[392327558,1761342641721,-271.347679,0.00038242,30]
[392327560,1761342641730,-271.347679,0.00038242,30]
[392327562,1761342641741,-151.0,0.00038242,30]
[392327564,1761342641751,-151.0,0.00038242,30]
[392327566,1761342641765,-151.0,0.00038242,30]
[392327568,1761342641775,-167.532071,0.00038242,30]
[392327570,1761342641785,-157.961088,0.00038242,30]
[392327572,1761342641794,-157.961088,0.00038242,30]
[392327574,1761342641805,-151.0,0.00038242,30]
[392327577,1761342641815,-151.0,0.00038242,30]
[392327579,1761342641825,-157.961088,0.00038242,30]
[392327581,1761342641837,-151.0,0.00038242,30]
[392327583,1761342641846,-151.0,0.00038242,30]
[392327585,1761342641855,-151.0,0.00038242,30]
[392327587,1761342641865,-21178.6038072,0.00038242,2]
[392327589,1761342641874,-157.961088,0.00038242,30]
[392327591,1761342641884,-151.0,0.00038242,30]
[392327592,1761342641894,-17533.9115063,0.00038245,3]
[392327593,1761342641903,-12943.8958777,0.00038245,3]
[392327594,1761342641912,-52601.734519,0.00038246,3]
[392327595,1761342641922,-151.0,0.00038246,30]
[392327596,1761342641931,-151.0,0.00038246,30]
[392327597,1761342641940,-151.0,0.00038246,30]
[392327598,1761342641949,-151.0,0.00038246,30]
[392327599,1761342641959,-213.525834,0.00038246,30]
[392327600,1761342641969,-151.0,0.00038246,30]
[392327601,1761342641978,-151.0,0.00038246,30]
[392327602,1761342641987,-151.0,0.00038246,30]
[392327603,1761342641997,-153.04558204,0.00038246,30]
[392327604,1761342642006,-291.32004,0.00038246,30]
[392327605,1761342642015,-151.0,0.00038246,30]
[392327606,1761342642025,-151.0,0.00038246,30]
[392327607,1761342642035,-151.0,0.00038246,30]
[392327608,1761342642044,-151.0,0.00038246,30]
[392327609,1761342642054,-151.0,0.00038246,30]
[392327610,1761342642062,-151.0,0.00038246,30]
[392327611,1761342642071,-151.0,0.00038246,30]
[392327612,1761342642080,-151.0,0.00038246,30]
[392327613,1761342642090,-11494.10875795,0.00038254,2]
[392327614,1761342642098,-3183.86423541,0.00038255,2]
[392327615,1761342642107,-645.2214,0.00038255,5]
[392327616,1761342642117,-669.0945918,0.00038255,5]
[392327617,1761342642126,-693.8510917,0.00038255,5]
[392327618,1761342642135,-719.52358209,0.00038255,5]
[392327619,1761342642144,-746.14595463,0.00038255,5]
[392327620,1761342642153,-334.5472959,0.00038255,5]
[392327621,1761342642162,-773.75335495,0.00038255,5]
[392327622,1761342642171,-802.38222908,0.00038255,5]
[392327623,1761342642180,-832.07037156,0.00038255,5]
[392327624,1761342642189,-500.0,0.00038255,5]
[392327625,1761342642198,-862.8569753,0.00038255,5]
[392327626,1761342642207,-500.0,0.00038255,5]
[392327627,1761342642217,-894.78268339,0.00038255,5]
[392327628,1761342642226,-500.0,0.00038255,5]
[392327629,1761342642235,-927.88964268,0.00038255,5]
[392327630,1761342642317,-500.0,0.00038255,5]
[392327631,1761342642326,-962.22155946,0.00038255,5]
[392327632,1761342642335,-500.0,0.00038255,5]
[392327633,1761342642344,-997.82375716,0.00038255,5]
[392327634,1761342642354,-342.96610045,0.00038255,5]
[392327635,1761342642363,-1034.74323617,0.00038255,5]
[392327636,1761342642372,-1073.02873591,0.00038255,5]
[392327637,1761342642381,-1112.73079914,0.00038255,5]
[392327638,1761342642391,-500.0,0.00038255,5]
[392327639,1761342642400,-500.0,0.00038255,5]
[392327640,1761342642409,-500.0,0.00038255,5]
[392327641,1761342642418,-500.0,0.00038255,5]
[392327642,1761342642427,-500.0,0.00038255,5]
[392327643,1761342642436,-500.0,0.00038255,5]
[392327644,1761342642445,-489.64647954,0.00038255,5]
[392327645,1761342642454,-500.0,0.00038255,2]
[392327646,1761342642463,-500.0,0.00038255,2]
[392327647,1761342642472,-200.0,0.00038256,2]
[392327648,1761342642481,-150.0,0.00038256,2]
[392327649,1761342642490,-150.0,0.00038256,2]
[392327650,1761342642499,-150.0,0.00038256,2]
[392327651,1761342642508,-283.07186142,0.00038256,2]
[392327652,1761342642517,-151.0,0.00038256,2]
[392327653,1761342642526,-4182.90531,0.00038256,2]
[392327654,1761342642535,-292.94634404,0.00038274,2]
[392327655,1761342642544,-151.0,0.00038279,30]
[392327656,1761342642553,-151.0,0.00038279,30]
[392327657,1761342642563,-151.0,0.00038279,30]
[392327658,1761342642571,-151.0,0.00038279,30]
[392327659,1761342642580,-151.0,0.00038279,30]
[392327660,1761342642593,-271.347679,0.0003828,30]
[392327661,1761342642603,-271.347679,0.0003828,30]
[392327662,1761342642612,-271.347679,0.0003828,30]
[392327663,1761342642621,-271.347679,0.0003828,30]
[392327664,1761342642630,-151.0,0.0003828,30]
[392327665,1761342642639,-151.0,0.0003828,30]
[392327666,1761342642648,-151.0,0.0003828,30]
[392327667,1761342642657,-157.961088,0.0003828,30]
[392327668,1761342642666,-151.0,0.0003828,30]
[392327669,1761342642675,-157.961088,0.0003828,30]
[392327670,1761342642685,-151.0,0.0003828,30]
[392327671,1761342642694,-157.961088,0.0003828,30]
[392327672,1761342642703,-151.0,0.0003828,30]
[392327673,1761342642712,-151.0,0.0003828,30]
[392327674,1761342642721,-157.961088,0.0003828,30]
[392327675,1761342642730,-151.0,0.0003828,30]
[392327676,1761342642739,-12943.8958777,0.0003828,3]
[392327677,1761342642748,-151.0,0.00038289,30]
[392327678,1761342642759,-151.0,0.00038289,30]
[392327679,1761342642768,-151.0,0.00038289,30]
[392327680,1761342642778,-151.0,0.00038289,30]
[392327681,1761342642787,-151.0,0.00038289,30]
[392327682,1761342642798,-246.62389,0.00038289,30]
[392327683,1761342642807,-17533.9115063,0.0003829,3]
[392327684,1761342642816,-8135.48808057,0.000383,30]
[392327685,1761342642825,-150.0,0.00038311,2]
[392327686,1761342642835,-150.0,0.00038311,2]
[392327687,1761342642844,-4175.42270422,0.00038322,2]
[392327688,1761342642852,-12943.8958777,0.00038326,3]
[392327689,1761342642861,-500.0,0.00038335,2]
[392327690,1761342642870,-500.0,0.00038335,2]
[392327691,1761342642879,-1652.0,0.00038335,5]
[392327692,1761342642887,-77663.3752664,0.00038336,3]
[392327693,1761342642896,-407.35292496,0.00038336,2]
[392327694,1761342642905,-150.4,0.00038336,2]
[392327695,1761342642914,-150.4,0.00038336,2]
[392327696,1761342642923,-151.0,0.00038336,30]
[392327697,1761342642932,-151.0,0.00038336,30]
[392327699,1761342642941,-151.0,0.00038336,30]
[392327701,1761342642951,-151.0,0.00038336,30]
[392327702,1761342642960,-151.0,0.00038336,30]
[392327703,1761342642969,-151.0,0.00038336,30]
[392327705,1761342642978,-12943.8958777,0.00038342,3]
[392327706,1761342642986,-175339.115063,0.00038346,3]
[392327707,1761342642995,-181214.542288,0.00038346,3]
[392327708,1761342643004,-151.0,0.00038346,30]